Cogmind - Beta 14 @@@ ROGUE MODE // 2024.10.19 @ 16:28:35 Player: upsidedowneye Result: Destroyed by Y-64 Sentinel with KE Penetrator Performance ------------- Evolutions (4) 2000 Regions Visited (11) 2200 Robots Destroyed (61) 305 Value Destroyed (2471) 2471 Prototype IDs (36) 720 Alien Tech Used (0) 0 Bonus (483) 483 TOTAL SCORE: 8179 Bonus ------- Follower Combat Kills 74 Aligned with FarCom 300 Met Data Miner 300 Friendly Fire -191 Cogmind --------- Core Integrity 0/850 Matter 300/300 Energy 98/100 System Corruption 0% Temperature Cool (0) Movement Core (50) Location -5/Proximity Caves Parts ------- > --- POWER (2) -------- (None) > --- PROPULSION (5) --- (None) > --- UTILITY (6) ------ Machine Analyzer Visual Processing Unit Improved Sensor Array Improved Signal Interpreter Hacking Suite > --- WEAPON (2) ------- (None) > --- INVENTORY (5) ---- Carbon-fiber Leg Enhanced Flexi-carbon Leg Enhanced Flexi-carbon Leg Heavy Laser Plasma Rifle Peak State ------------ > --- POWER ------------ Light Deuterium Engine Micro Nuclear Core > --- PROPULSION ------- Carbon-fiber Leg Makeshift Leg Armored Leg Armored Leg Xenon Bombardment Thruster > --- UTILITY ---------- Large Storage Unit Machine Analyzer Improved Signal Interpreter Hacking Suite System Shield Corruption Screen > --- WEAPON ----------- Advanced Assault Cannon Advanced Assault Cannon > --- INVENTORY -------- Xenon Bombardment Thruster Improved Cryofiber Web Trap Scanner Visual Processing Unit Improved Sensor Array Launcher Guidance Computer Transmission Jammer Coil Gun Heavy Rocket Launcher Heavy Missile Launcher Powered Hammer [Rating: 57] Favorites ----------- Power Light Ion Engine Engine Light Ion Engine Power Core Light Nuclear Core Propulsion Aluminum Leg Treads Armored Treads Leg Aluminum Leg Wheel Compact Wheel Hover Unit Gravmag System Flight Unit Xenon Bombardment Thruster Utility Large Storage Unit Device Trap Scanner Storage Large Storage Unit Processor Corruption Screen Hackware System Shield Protection Weapon Shielding Weapon Advanced Assault Cannon Energy Gun Medium Laser Energy Cannon Heavy Ion Cannon Ballistic Gun Assault Rifle Ballistic Cannon Advanced Assault Cannon Launcher Rocket Launcher Impact Weapon Powered Hammer Slashing Weapon Longsword +1 Piercing Weapon Spear Build | -11 -10 -10 -10 -9 -8 -7 -6 -6 -6 -6 -5 ------- Run | Yrd Mat Min Exi Min Mat Fac Fac Low Low Dat Pro Slots Evolved 8 | . . . . . 4 2 2 . . . . Power 1 | . . . . . . 1 . . . . . Propulsion 3 | . . . . . 2 . 1 . . . . Utility 4 | . . . . . 2 1 1 . . . . Weapon . | . . . . . . . . . . . . Parts Attached 129 | 8 6 6 1 . 10 47 8 27 5 . 11 Power 23 | 1 1 1 . . . 7 1 10 1 . 1 Engine 14 | 1 1 1 . . . 3 . 7 . . 1 Core 9 | . . . . . . 4 1 3 1 . . Reactor . | . . . . . . . . . . . . Propulsion 32 | 3 . 2 . . 3 14 3 7 . . . Treads 4 | . . . . . . 4 . . . . . Leg 14 | 2 . 2 . . 3 2 . 5 . . . Wheel 1 | 1 . . . . . . . . . . . Hover 3 | . . . . . . 3 . . . . . Flight 10 | . . . . . . 5 3 2 . . . Utility 22 | 1 1 1 . . 4 9 2 . 1 . 3 Device 11 | . . 1 . . 2 5 . . . . 3 Storage 4 | 1 1 . . . . 1 1 . . . . Processor 4 | . . . . . . 2 1 . 1 . . Hackware 2 | . . . . . 1 1 . . . . . Protection 1 | . . . . . 1 . . . . . . Artifact . | . . . . . . . . . . . . Weapon 52 | 3 4 2 1 . 3 17 2 10 3 . 7 Energy Gun 5 | 2 . . . . . . . . . . 3 Energy Cannon 1 | . . . . . . 1 . . . . . Ballistic Gun 12 | 1 . 1 . . 1 5 . . 2 . 2 Ballistic Cannon 10 | . . . . . . 4 2 4 . . . Launcher 12 | . 2 1 . . 2 1 . 6 . . . Special Weapon . | . . . . . . . . . . . . Impact Weapon 5 | . . . . . . 2 . . 1 . 2 Slashing Weapon 6 | . 2 . 1 . . 3 . . . . . Piercing Weapon 1 | . . . . . . 1 . . . . . Special Melee Weapon . | . . . . . . . . . . . . Unidentified Prototypes . | . . . . . . . . . . . . Parts Lost 55 | . . 2 . . 3 23 2 9 9 . 7 Power 10 | . . 1 . . . 5 . 1 2 . 1 Propulsion 23 | . . . . . 3 8 2 6 4 . . Utility 9 | . . . . . . 5 . . 1 . 3 Weapon 13 | . . 1 . . . 5 . 2 2 . 3 Highest Loss Streak 9 | . . 2 . . 3 8 2 2 9 . 4 To Critical Strikes . | . . . . . . . . . . . . Average Slot Usage (%) 75 | . 83 96 100 100 88 86 82 85 50 40 42 Engine 5 | . 13 12 14 14 9 6 6 2 . . . Core 2 | . . . . . . 5 . 2 1 . . Treads 3 | . . . . . . 11 . . . . . Leg 11 | . 28 28 28 28 26 6 . 16 5 . . Flight 3 | . . . . . . 5 32 14 . . . Device 8 | . . 12 14 14 16 14 . . . . 8 Storage 7 | . 14 14 14 14 9 7 6 6 6 6 1 Processor 11 | . . . . . . 5 20 20 24 26 21 Hackware 6 | . . . . . 8 8 13 13 7 6 6 Ballistic Gun 2 | . 12 8 14 14 3 1 . . . . . Ballistic Cannon 2 | . . . . . . 4 3 3 2 . . Launcher 1 | . 8 1 . . 5 . . 3 . . . Slashing Weapon 3 | . 3 18 14 14 9 1 . . . . . Peak Build Rating 57 | 6 7 10 17 17 27 51 52 57 49 19 28 Average Rating 28 | 4 5 9 13 17 24 38 46 47 25 19 20 On Entrance 21 | . 6 6 10 17 17 25 39 45 49 19 19 Naked Turns . | . . . . . . . . . . . . Heaviest Build 55 | 12 28 29 29 29 33 55 25 44 38 20 20 Greatest Support 68 | 20 20 20 20 20 40 68 30 67 47 3 3 Greatest Overweight (x) 10 | . 1 1 1 1 1 10 . 1 6 6 6 Average Overweight (x) . | . . 1 1 1 . . . . 3 6 . Largest Inventory Capacity 20 | 8 15 15 15 15 15 20 20 15 15 15 15 Average Capacity 14 | 7 12 15 15 15 15 15 15 15 15 15 7 Most Carried 20 | 5 10 14 15 15 15 20 19 15 11 10 10 Average Carried 11 | 2 5 12 14 15 13 14 14 11 10 10 6 Final Capacity 20 | 8 15 15 15 15 15 20 15 15 15 15 5 Final Carried 20 | 2 9 14 15 15 15 20 15 10 10 10 5 Class Distribution -------------------- 69% | Mutant 17% | Hacker-Mutant 6% | Scavenger-Mutant 3% | Scout Dominant Class ---------------- Mutant | -10/Materials Mutant | -10/Mines Mutant | -10/Exiles Mutant | -9/Mines Mutant | -8/Materials Mutant | -7/Factory Hacker-Sprinter | -6/Factory Hacker-Mutant | -6/Lower Caves Mutant | -6/Lower Caves Mutant | -6/Data Miner Mutant | -5/Proximity Caves Resources | -11 -10 -10 -10 -9 -8 -7 -6 -6 -6 -6 -5 ----------- Run | Yrd Mat Min Exi Min Mat Fac Fac Low Low Dat Pro Matter Collected 2539 | 265 50 112 . . 126 1009 45 557 247 . 128 Remotely 605 | . . . . . . 605 . . . . . Salvage Created 2118 | 66 50 82 . . 263 886 34 365 170 . 202 Parts 109 | 4 . 8 . . 12 59 1 17 4 . 4 Haulers Intercepted 1 | . . . . . 1 . . . . . . Recyclers Shooed 1 | . . 1 . . . . . . . . . Parts Field Recycled . | . . . . . . . . . . . . Retrieved Matter . | . . . . . . . . . . . . Parts Self-Destructed 27 | . . . . . . . . 16 6 . 5 Prevented . | . . . . . . . . . . . . Kills | -11 -10 -10 -10 -9 -8 -7 -6 -6 -6 -6 -5 ------- Run | Yrd Mat Min Exi Min Mat Fac Fac Low Low Dat Pro Combat Hostiles Destroyed 52 | . 1 4 . . 3 25 1 12 3 . 3 Melee 11 | . . 3 . . 1 6 . . 1 . . Guns 5 | . 1 . . . . . . . 2 . 2 Cannons 15 | . . . . . . 12 1 2 . . . AOE 20 | . . 1 . . 2 7 . 10 . . . Classes Destroyed 11 | 1 1 1 . . 1 5 . 2 . . . Worker 1 | . . . . . . 1 . . . . . Hauler 1 | . . . . . 1 . . . . . . Recycler 3 | 1 . . . . 1 1 . . . . . Watcher 3 | . . . . . . 3 . . . . . Swarmer 13 | . . 3 . . 1 6 . 3 . . . Grunt 26 | . 1 1 . . 3 10 . 7 2 . 2 Duelist 2 | . . . . . . . . 1 1 . . Sentry 3 | . . . . . . 2 1 . . . . Hunter 3 | . . . . . . 2 . . . . 1 Programmer 5 | . . . . . . 5 . . . . . Behemoth 1 | . . . . . . . . 1 . . . Best Kill Streak 6 | 1 1 2 . . 4 6 1 4 2 . 1 Combat Bots Only 4 | . 1 2 . . 2 4 1 4 2 . 1 Max Kills in Single Turn 3 | 1 1 1 . . 2 3 1 3 1 . 1 Gunslinging . | . . . . . . . . . . . . Exploded 3 | . . 1 . . 1 3 . 3 . . . Melee 1 | . . 1 . . 1 1 . . 1 . . Uniques/NPCs Destroyed . | . . . . . . . . . . . . Combat | -11 -10 -10 -10 -9 -8 -7 -6 -6 -6 -6 -5 -------- Run | Yrd Mat Min Exi Min Mat Fac Fac Low Low Dat Pro Hostile Shots Fired 659 | . 14 47 . . 22 285 48 105 51 . 87 Missed 224 | . 5 9 . . 6 100 24 40 10 . 30 Damage Taken 6242 | . 98 360 . . 267 2463 136 1105 824 . 989 Core 1582 | . 31 32 . . 13 640 35 103 143 . 585 Absorbed by Shields . | . . . . . . . . . . . . Core Remaining (%) 69 | 100 . . . 74 97 8 . . . . . Volleys Fired 133 | 1 4 5 . . 4 63 5 19 14 . 18 Largest 2 | 2 1 1 . . 1 2 2 2 2 . 2 Hottest 144 | 70 20 30 . . 33 96 96 96 96 . 144 Shots Fired 217 | 2 4 5 . . 4 107 10 36 28 . 21 Gun 65 | 2 4 4 . . 1 11 . . 22 . 21 Cannon 129 | . . . . . . 92 10 21 6 . . Launcher 23 | . . 1 . . 3 4 . 15 . . . Special . | . . . . . . . . . . . . Kinetic 176 | 1 4 4 . . 1 95 10 21 28 . 12 Thermal 18 | 1 . . . . . 8 . . . . 9 Explosive 23 | . . 1 . . 3 4 . 15 . . . Electromagnetic . | . . . . . . . . . . . . Robot Hit Streak 12 | 2 2 6 . . 1 12 4 8 9 . 12 Robot Miss Streak 4 | . 2 . . . 1 4 4 2 3 . 2 Penetration Max . | . . . . . . . . . . . . Secondary Targets . | . . . . . . . . . . . . Shots Hit Robots 162 | 2 2 13 . . 2 75 5 20 22 . 21 Core Hits 88 | 2 1 5 . . 7 39 2 22 6 . 4 Critical Kills . | . . . . . . . . . . . . Critical Parts Destroyed 3 | . . . . . . . . . 2 . 1 Critical Strikes 12 | . . . . . . 6 . 2 2 . 2 Burn 1 | . . . . . . . . . . . 1 Destroy 1 | . . . . . . . . . 1 . . Blast 6 | . . . . . . 4 . 2 . . . Smash 2 | . . . . . . . . . 1 . 1 Sever 2 | . . . . . . 2 . . . . . Melee Attacks 44 | . . 17 . . 1 18 . . 4 . 4 Impact 13 | . . . . . . 5 . . 4 . 4 Slashing 31 | . . 17 . . 1 13 . . . . . Piercing . | . . . . . . . . . . . . Sneak Attacks 2 | . . 1 . . . 1 . . . . . Combat Hostiles . | . . . . . . . . . . . . Follow-up Attacks 1 | . . . . . . 1 . . . . . Damage Inflicted 6450 | 25 29 282 . . 376 3067 126 1490 587 . 468 Guns 918 | 25 29 51 . . . 111 . . 375 . 327 Cannons 2161 | . . . . . . 1606 126 369 60 . . Explosions 2054 | . . 39 . . 322 572 . 1121 . . . Melee 1317 | . . 192 . . 54 778 . . 152 . 141 Ramming . | . . . . . . . . . . . . Kinetic 2725 | 13 29 51 . . . 1554 126 369 435 . 148 Thermal 354 | 12 . . . . . 163 . . . . 179 Explosive 2054 | . . 39 . . 322 572 . 1121 . . . Electromagnetic . | . . . . . . . . . . . . Impact 430 | . . . . . . 137 . . 152 . 141 Slashing 887 | . . 192 . . 54 641 . . . . . Piercing . | . . . . . . . . . . . . Highest Corruption 4 | . . . . . . 4 . . . . . Average Corruption 3 | . . . . . . 3 . . . . . Corruption Purged 4 | . . . . . . 4 . . . . . Corruption Blocked . | . . . . . . . . . . . . Effects 27 | . . . . . . 27 . . . . . Message Errors 8 | . . . . . . 8 . . . . . Matter Fused 11 | . . . . . . 11 . . . . . Energy Discharges 3 | . . . . . . 3 . . . . . Parts Fused 2 | . . . . . . 2 . . . . . Data Loss (minor) 3 | . . . . . . 3 . . . . . Overload Shots . | . . . . . . . . . . . . Overflow Damage 505 | . . 6 . . . 280 . 13 98 . 108 Projectiles 82 | . . . . . . 69 . 13 . . . Explosions 112 | . . . . . . 112 . . . . . Melee 311 | . . 6 . . . 99 . . 98 . 108 Knockbacks 23 | . . . . . . 16 . 2 4 . 1 Impact 4 | . . . . . . 1 . . 2 . 1 Kinetic 16 | . . . . . . 13 . 2 1 . . Secondary 3 | . . . . . . 2 . . 1 . . Self-Inflicted Damage 176 | . . . . . 24 83 . 69 . . . Shots 5 | . . . . . 1 2 . 2 . . . Rammed . | . . . . . . . . . . . . Targets Rammed . | . . . . . . . . . . . . Kicked . | . . . . . . . . . . . . Crushed . | . . . . . . . . . . . . Highest Temperature 333 | 9 . 8 . . . 333 136 114 57 . 93 Average Temperature 76 | 6 . 8 . . . 91 76 46 24 . 45 Received Heat Transfer 1782 | . 54 99 . . 180 687 . 189 396 . 177 Siege Activations . | . . . . . . . . . . . . Robots Corrupted 1 | . . . . . . . . . . . 1 Combat Hostiles 1 | . . . . . . . . . . . 1 Parts Fried 3 | . . . . . . . . . 1 . 2 Impact Corruptions 10 | . . . . . . . . . 3 . 7 Robots Melted . | . . . . . . . . . . . . Combat Hostiles . | . . . . . . . . . . . . Parts Melted 2 | . . . . . . . . . . . 2 Heat Transferred 655 | 37 . . . . . 185 . . . . 433 Parts Sabotaged . | . . . . . . . . . . . . Parts Stolen . | . . . . . . . . . . . . Parts Stripped . | . . . . . . . . . . . . Power Chain Reactions . | . . . . . . . . . . . . Alert | -11 -10 -10 -10 -9 -8 -7 -6 -6 -6 -6 -5 ------- Run | Yrd Mat Min Exi Min Mat Fac Fac Low Low Dat Pro Peak Influence 345 | 5 55 86 . . 91 345 196 . . . . Initial 168 | . 3 . . . . . 168 . . . . Average 73 | . 12 50 . . 34 94 174 . . . . Maximum Alert Level 1 | . . . . . . 1 . . . . . Low Security (%) 84 | 100 100 100 . 100 100 74 100 . . . . Level 1 15 | . . . . . . 25 . . . . . Level 2 . | . . . . . . . . . . . . Level 3 . | . . . . . . . . . . . . Level 4 . | . . . . . . . . . . . . Level 5 . | . . . . . . . . . . . . High Security . | . . . . . . . . . . . . Max Security . | . . . . . . . . . . . . Squads Dispatched 14 | . 2 . . . . 12 . . . . . Investigation 5 | . 1 . . . . 4 . . . . . Extermination 4 | . . . . . . 4 . . . . . Reinforcement 5 | . 1 . . . . 4 . . . . . Assault . | . . . . . . . . . . . . Garrison . | . . . . . . . . . . . . Intercept . | . . . . . . . . . . . . Searches Triggered . | . . . . . . . . . . . . Construction Impeded 1 | . . . . . . 1 . . . . . Haulers Reinforced . | . . . . . . . . . . . . Active Scanning Responses . | . . . . . . . . . . . . Cargo Convoy Interrupts . | . . . . . . . . . . . . Stealth | -11 -10 -10 -10 -9 -8 -7 -6 -6 -6 -6 -5 --------- Run | Yrd Mat Min Exi Min Mat Fac Fac Low Low Dat Pro Distress Signals 4 | . 1 . . . . 3 . . . . . Communications Jammed . | . . . . . . . . . . . . Distress Signals . | . . . . . . . . . . . . Times Spotted 88 | . 3 4 . . 2 42 1 24 3 . 9 Peak Tracking Total 7 | . 2 3 . . 2 5 1 7 3 . 4 Tactical Retreats 8 | . . . . . . 3 . 4 . . 1 Traps | -11 -10 -10 -10 -9 -8 -7 -6 -6 -6 -6 -5 ------- Run | Yrd Mat Min Exi Min Mat Fac Fac Low Low Dat Pro Traps Triggered 2 | . 1 . . . . 1 . . . . . Indirectly . | . . . . . . . . . . . . Trap Hack Attempts . | . . . . . . . . . . . . Triggered . | . . . . . . . . . . . . Disarmed 4 | . . . . . . 4 . . . . . Reprogrammed . | . . . . . . . . . . . . Reused . | . . . . . . . . . . . . Traps Extracted . | . . . . . . . . . . . . Installed . | . . . . . . . . . . . . Triggered 1 | . . . . . . . . . 1 . . Machines | -11 -10 -10 -10 -9 -8 -7 -6 -6 -6 -6 -5 ---------- Run | Yrd Mat Min Exi Min Mat Fac Fac Low Low Dat Pro Machines Disabled 5 | . . . . . 1 4 . . . . . Max in Single Turn 2 | . . . . . 1 2 . . . . . Machines Repaired . | . . . . . . . . . . . . Machines Dismantled . | . . . . . . . . . . . . Machines Sabotaged . | . . . . . . . . . . . . Overloaded Fab Kills . | . . . . . . . . . . . . Hacking | -11 -10 -10 -10 -9 -8 -7 -6 -6 -6 -6 -5 --------- Run | Yrd Mat Min Exi Min Mat Fac Fac Low Low Dat Pro Machines Accessed 16 | . 2 . 1 . 2 6 . . . 4 1 Terminals 11 | . 2 . . . 2 6 . . . . 1 Fabricators . | . . . . . . . . . . . . Repair Stations . | . . . . . . . . . . . . Recycling Units . | . . . . . . . . . . . . Scanalyzers . | . . . . . . . . . . . . Garrison Access . | . . . . . . . . . . . . Total Hacks 71 | . 5 . 1 . 7 22 . . . 35 1 Successful 45 | . 1 . 1 . 1 6 . . . 35 1 Failed 26 | . 4 . . . 6 16 . . . . . Catastrophic 6 | . 1 . . . 3 2 . . . . . Database Lockouts . | . . . . . . . . . . . . Manual 2 | . . . 1 . . . . . . 1 . Terminals 35 | . 5 . . . 7 22 . . . . 1 Fabricators . | . . . . . . . . . . . . Repair Stations . | . . . . . . . . . . . . Recycling Units . | . . . . . . . . . . . . Scanalyzers . | . . . . . . . . . . . . Garrison Access . | . . . . . . . . . . . . Terminal Hacks 45 | . 1 . 1 . 1 6 . . . 35 1 Record 12 | . . . . . . . . . . 11 1 Part Schematic 13 | . . . . . . . . . . 13 . Robot Schematic 8 | . . . . . . . . . . 8 . Prototype ID Bank 4 | . . . . . . 1 . . . 3 . Branch Access Points 1 | . 1 . . . . . . . . . . Unreport Threat 1 | . . . . . . 1 . . . . . Locate Traps 2 | . . . . . . 2 . . . . . Disarm Traps 1 | . . . . . . 1 . . . . . Recall Reinforcements 1 | . . . . . 1 . . . . . . Registered Components 1 | . . . . . . 1 . . . . . Derelict Proto ID Bank 1 | . . . 1 . . . . . . . . Fabricator Hacks . | . . . . . . . . . . . . Repair Station Hacks . | . . . . . . . . . . . . Recycling Unit Hacks . | . . . . . . . . . . . . Scanalyzer . | . . . . . . . . . . . . Garrison Access Hacks . | . . . . . . . . . . . . Unauthorized Hacks . | . . . . . . . . . . . . Terminals . | . . . . . . . . . . . . Fabricators . | . . . . . . . . . . . . Repair Stations . | . . . . . . . . . . . . Recycling Units . | . . . . . . . . . . . . Scanalyzers . | . . . . . . . . . . . . Garrison Access . | . . . . . . . . . . . . Data Cores Recovered . | . . . . . . . . . . . . Used . | . . . . . . . . . . . . Hacking Detections 10 | . 2 . . . 2 6 . . . . . Full Trace Events 6 | . 1 . . . 1 4 . . . . . Feedback Events . | . . . . . . . . . . . . Feedback Blocked . | . . . . . . . . . . . . Robot Schematics Acquired 8 | . . . . . . . . . . 8 . Robots Built . | . . . . . . . . . . . . Authchips . | . . . . . . . . . . . . Time . | . . . . . . . . . . . . Total Robot Build Rating . | . . . . . . . . . . . . Part Schematics Acquired 13 | . . . . . . . . . . 13 . Parts Built . | . . . . . . . . . . . . Authchips . | . . . . . . . . . . . . Time . | . . . . . . . . . . . . Total Part Build Rating . | . . . . . . . . . . . . Parts Repaired . | . . . . . . . . . . . . Time . | . . . . . . . . . . . . Parts Recycled . | . . . . . . . . . . . . Recycled Matter . | . . . . . . . . . . . . Retrieved Matter . | . . . . . . . . . . . . Retrieved Components . | . . . . . . . . . . . . Parts Scanalyzed . | . . . . . . . . . . . . Part Schematics Acquired . | . . . . . . . . . . . . Parts Damaged . | . . . . . . . . . . . . Bothacking | -11 -10 -10 -10 -9 -8 -7 -6 -6 -6 -6 -5 ------------ Run | Yrd Mat Min Exi Min Mat Fac Fac Low Low Dat Pro Used RIF Installer . | . . . . . . . . . . . . Robots Hacked . | . . . . . . . . . . . . Non-combat . | . . . . . . . . . . . . Combat . | . . . . . . . . . . . . Robot Hacks Applied . | . . . . . . . . . . . . Relay Couplers Released . | . . . . . . . . . . . . Fabnet Peak Effective % . | . . . . . . . . . . . . Robots Rewired . | . . . . . . . . . . . . Allies Hacked . | . . . . . . . . . . . . Hacks Repelled . | . . . . . . . . . . . . Allies | -11 -10 -10 -10 -9 -8 -7 -6 -6 -6 -6 -5 -------- Run | Yrd Mat Min Exi Min Mat Fac Fac Low Low Dat Pro Total Allies 4 | . . 3 . . . . . . . . 1 Largest Group 3 | . . 3 3 3 3 . . . . . 1 Highest-Rated Group 96 | . . 40 40 40 40 . . . . . 96 Highest-Rated Ally 96 | . . 16 16 16 16 . . . . . 96 Total Orders . | . . . . . . . . . . . . Ally Attacks 28 | . . . . . 12 . . . . . 16 Total Damage 404 | . . . . . 122 . . . . . 282 Kills 2 | . . . . . . . . . . . 2 Allies Corrupted . | . . . . . . . . . . . . Allies Melted . | . . . . . . . . . . . . Intel | -11 -10 -10 -10 -9 -8 -7 -6 -6 -6 -6 -5 ------- Run | Yrd Mat Min Exi Min Mat Fac Fac Low Low Dat Pro Robot Analysis Total . | . . . . . . . . . . . . Derelict Logs Recovered 4 | . . 1 . . . . . 1 1 . 1 Drone Launches . | . . . . . . . . . . . . Drone Recoveries . | . . . . . . . . . . . . Exploration | -11 -10 -10 -10 -9 -8 -7 -6 -6 -6 -6 -5 ------------- Run | Yrd Mat Min Exi Min Mat Fac Fac Low Low Dat Pro Turns Passed 8268 | 113 473 485 544 19 403 2687 78 866 1394 350 856 Spaces Moved 5077 | 75 284 207 286 11 245 1225 173 1082 539 101 849 Core 1260 | 7 . . . . . 3 . . 300 101 849 Treads 893 | . . . . . . 893 . . . . . Legs 1890 | 68 284 207 286 11 245 178 . 372 239 . . Wheels . | . . . . . . . . . . . . Hover . | . . . . . . . . . . . . Flight 1034 | . . . . . . 151 173 710 . . . Fastest Speed 28 | 50 120 190 190 190 120 111 28 28 120 350 50 Average Speed 143 | 113 157 190 190 190 151 183 28 65 248 350 88 Slowest Speed 550 | 120 190 190 190 190 190 550 28 130 350 350 350 Overloaded Moves . | . . . . . . . . . . . . Propulsion Burnouts . | . . . . . . . . . . . . Robots Hopped . | . . . . . . . . . . . . Cave-ins Triggered . | . . . . . . . . . . . . Exploration Rate (%) 40 | 4 33 44 43 8 29 25 3 81 72 73 73 Regions Visited 11 Branch Regions 7 Pre-discovered Areas 2 | . . . . . . . . . . 1 1 Known Exits Taken 6 | . 1 . . . . 1 1 1 1 1 . Unknown Exits Taken 5 | 1 . 1 1 1 1 . . . . . . Scrap Searched 5 | . . 1 . . . . . 3 . . 1 Spaces Dug 76 | . . . . . 9 3 . 64 . . . Terrain Destroyed 248 | . . 6 . . 22 60 3 156 1 . . Melee . | . . . . . . . . . . . . Projectile 23 | . . . . . . 16 3 3 1 . . AOE 225 | . . 6 . . 22 44 . 153 . . . Terrain Rammed . | . . . . . . . . . . . . Walls Destroyed . | . . . . . . . . . . . . Machines Disabled . | . . . . . . . . . . . . Actions | -11 -10 -10 -10 -9 -8 -7 -6 -6 -6 -6 -5 --------- Run | Yrd Mat Min Exi Min Mat Fac Fac Low Low Dat Pro Total 5781 | 100 305 259 287 10 272 1545 195 1208 565 100 935 Wait 220 | 7 . 18 . . . 98 . 63 . . 34 Move 5066 | 74 283 206 285 10 244 1224 172 1081 538 100 849 Hop . | . . . . . . . . . . . . Pick Up 114 | 9 10 7 1 . 9 58 4 6 2 . 8 Fast Attach . | . . . . . . . . . . . . Attach 95 | 6 4 3 . . 5 34 7 21 4 . 11 Detach 29 | . 1 . . . . 9 2 11 2 . 4 Swap 34 | 2 2 3 1 . 5 13 1 6 1 . . Drop 47 | 1 1 . . . 4 29 4 1 . . 7 Fire 133 | 1 4 5 . . 4 63 5 19 14 . 18 Melee 43 | . . 17 . . 1 17 . . 4 . 4 Ram . | . . . . . . . . . . . . Kick . | . . . . . . . . . . . . Crush . | . . . . . . . . . . . . Escape Stasis . | . . . . . . . . . . . . Rewire . | . . . . . . . . . . . . Trap . | . . . . . . . . . . . . Miscellaneous . | . . . . . . . . . . . . Route ------- -11/Scrapyard -10/Materials -10/Mines (discovered 3 exits: [*Mat] / *Exi / Sub) -10/Exiles -9/Mines -8/Materials -7/Factory -6/Factory -6/Lower Caves -6/Lower Caves (discovered 2 exits: *Fac / *Dat) -6/Data Miner -5/Proximity Caves History --------- Turn | Location | Event 33 | -11/Scrapyard | Discovered new exit (range 16) 114 | -11/Scrapyard | Entered Materials 134 | -10/Materials | Identified exit to Mines 300 | -10/Materials | Build established: Mutant 587 | -10/Materials | Entered Mines 612 | -10/Mines | Met a Derelict bent on vengeance 686 | -10/Mines | Discovered new exit (range 9) 895 | -10/Mines | Identified exit to Subcaves 955 | -10/Mines | Assisted by bots powering up and referring to "LRC-V3" 1059 | -10/Mines | Deemed a non-threat by the Exiles lab entrance 1061 | -10/Mines | Discovered new exit (range 5) 1072 | -10/Mines | Entered Exiles 1072 | -10/Exiles | Accompanied by 3 allies 1143 | -10/Exiles | Met 8R-AWN 1183 | -10/Exiles | Met EX-HEX 1261 | -10/Exiles | Met EX-BIN 1297 | -10/Exiles | Aligned with FarCom system 1299 | -10/Exiles | Given EX-Vault access code 1356 | -10/Exiles | Opened EX-Vault 1376 | -10/Exiles | Found Longsword +1 1417 | -10/Exiles | Warned to stay clear of 0b10 Research branches 1578 | -10/Exiles | Discovered new exit (range 15) 1616 | -10/Exiles | Left Exiles lab with Longsword +1 1616 | -10/Exiles | Entered Mines 1616 | -9/Mines | Accompanied by 3 allies 1622 | -9/Mines | Discovered new exit (range 7) 1635 | -9/Mines | Entered Materials 1635 | -8/Materials | Accompanied by 3 allies 1635 | -8/Materials | Evolved 4 slots: Propulsion x2, Utility x2 1843 | -8/Materials | Lost 3 allies 1887 | -8/Materials | Lost 3 parts (3n) 1993 | -8/Materials | Discovered new exit (range 4) 2038 | -8/Materials | Entered Factory 2038 | -7/Factory | Evolved 2 slots: Power x1, Utility x1 2424 | -7/Factory | Lost 8 parts (1p2n3u2w) 2927 | -7/Factory | Core integrity fell below 50% 3671 | -7/Factory | Lost 5 parts (2p2n1u) 3831 | -7/Factory | Lost 3 parts (1p1n1w) 4096 | -7/Factory | Build established: Scavenger-Mutant 4632 | -7/Factory | Build established: Hacker-Mutant 4650 | -7/Factory | Core integrity fell below 20% 4690 | -7/Factory | Discovered new exit (range 14) 4724 | -7/Factory | Identified exit to Factory 4725 | -7/Factory | Entered another Factory area 4725 | -6/Factory | Evolved 2 slots: Propulsion x1, Utility x1 4771 | -6/Factory | Discovered new exit (range 16) 4799 | -6/Factory | Identified exit to Lower Caves 4803 | -6/Factory | Entered Lower Caves 4884 | -6/Lower Caves | Spotted B-75 Beast 4951 | -6/Lower Caves | Learned Factory interactive machine intel 4983 | -6/Lower Caves | Encountered a Warlord checkpoint 5470 | -6/Lower Caves | Destroyed B-75 Beast 5649 | -6/Lower Caves | Discovered new exit (range 11) 5654 | -6/Lower Caves | Attracted the attention of an 0b10 outpost 5668 | -6/Lower Caves | Identified exit to Lower Caves 5669 | -6/Lower Caves | Entered another Lower Caves area 5685 | -6/Lower Caves | Discovered new exit (range 9) 5807 | -6/Lower Caves | Identified exit to Factory 5860 | -6/Lower Caves | Identified exit to Data Miner 6042 | -6/Lower Caves | Lost 9 parts (2p4n1u2w) 6246 | -6/Lower Caves | Build established: Mutant 7063 | -6/Lower Caves | Entered Data Miner 7063 | -6/Data Miner | Discovered new exit (range 6) 7123 | -6/Data Miner | Met Data Miner 7217 | -6/Data Miner | Learned location of Section 7 (-2) 7217 | -6/Data Miner | Acquired the access code to Warlord's prototype stash 7298 | -6/Data Miner | Received God Mode back door access code from Data Miner 7410 | -6/Data Miner | Identified exit to Proximity Caves 7413 | -6/Data Miner | Entered Proximity Caves 7654 | -5/Proximity Caves | Core integrity fell below 50% 7671 | -5/Proximity Caves | Lost 4 parts (1p1u2w) 7929 | -5/Proximity Caves | Learned location of Armory (-3) 7959 | -5/Proximity Caves | Escorted by Enhanced Grunt 8236 | -5/Proximity Caves | Core integrity fell below 20% 8261 | -5/Proximity Caves | Build established: Scout 8266 | -5/Proximity Caves | Attracted the attention of an 0b10 checkpoint 8269 | -5/Proximity Caves | Destroyed by Y-64 Sentinel with KE Penetrator Last Messages --------------- Acquired Plasma Rifle. Searching scrap... Found Med. Storage Unit. Found 34 Matter. Dropped Lrg. Storage Unit. Acquired Med. Storage Unit. Lgt. Angular Momentum Engine melted. G-50 Soldier destroyed. Acquired 20 matter. Dropped Corrupted Carbon-fiber Leg. Acquired Corrupted Prototype Leg. Dropped Launcher Guidance Computer. Acquired Corrupted Carbon-fiber Leg. Dropped Med. Storage Unit. Acquired Corrupted Prototype Leg. Trap Scanner destroyed. Y-64 Sentinel: "INTERCEPTING UNREGISTERED DERELICT." Slug penetrates Wall. Penetrated by Slug. Map ----- +----------------------------------------------------+ | ##""""""""" #???# #?????????????## ## # | | ## """"" ##### #?????????????## #### | | ## ## ?????????##### #??? | | ### ???????## #??# #??? | | #?# ####### #???###??? | | ######### #?# ### ########## | | ????????# #? ?????# % | | ???????# ##?? #???????# ! | | ???????# ##????????????# ##### | | ???????## ######?????????????# ##### | | ????????## #??????????????????# ####### | | ?????????####???????? ?????????### ###### | | ????????????????????? ??????????# | | ?????????????????????# ??????????# | | ??????????????##?????# ??????? ########### | | ??????????????# ????# ??????## ?????###??# | | ?????????????# ??## ??????# ### ?????# ### | | ????????????? ### ??????## ??##????? ## | | ???????????? ?????? ??????????? ## | | ???????????? ????? ??????????? # | | ???????????? ???#####????????????# # | | ??????????? ????????????????????# ## | | ?????????????? ###?????????????????# ## | | ?????????????????# Y #;###############?### ## | | ?????????????????# ### | | ?????????????????#$ @ ## | | ??????????????# ############## # | | ?????????????# ?????????????# ## | | ??????????? #??????????????# #### # | | ??????????? ### #??????????????# ##??### | | ???????????? ????####???????????????## ###?????? | | ??????????????????????????????????????####???????? | | ?????????????????????????????????????????????????? | | ?????????????????????????????????????????????????? | | ?????????????????????????????????????????????????? | | ?????????????????????????????????????????????????? | | ?????????????????????????????????????????????????? | | ?????????????????????????????????????????????????? | | ?????????????????????????????????????????????????? | | ?????????????????????????????????????????????????? | | ?????????????????????????????????????????????????? | | ?????????????????????????????????????????????????? | | ?????????????????????????????????????????????????? | | ?????????????????????????????????????????????????? | | ?????????????????????????????????????????????????? | | ?????????????????????????????????????????????????? | | ?????????????????????????????????????????????????? | | ?????????????????????????????????????????????????? | | | | | +----------------------------------------------------+ Best States ------------- Heat Dissipation 48 Energy Generation 25 Energy Capacity 350 Matter Stores 300 Matter Capacity 300 Sight Range 18 Robot Scan Range 15 Terrain Scan Density 10 ECM Strength 2 Jamming Range 12 Additional Mass Support 9 Corruption Block 5 Weapon Shielding 33 Evasion (%) 64 Recoil Reduction 3 Offensive Hacking 10 Defensive Hacking 10 Item Schematics ----------------- Combat Drone Bay | -6/Data Miner | Free Lgt. Regenerative Plating | -6/Data Miner | Free Cld. Nuclear Pulse Thruster | -6/Data Miner | Free Exp. Heat Sink | -6/Data Miner | Free Hvy. Gatling Laser | -6/Data Miner | Free Myomer Leg | -6/Data Miner | Free Adv. Reaction Control System | -6/Data Miner | Free Hvy. Disruptor Cannon | -6/Data Miner | Free Imp. Transmission Jammer | -6/Data Miner | Free Lrn. Sensor Array | -6/Data Miner | Free Imp. Fusion Compressor | -6/Data Miner | Free Hvy. Armored Exoskeleton | -6/Data Miner | Free Adv. Recalibrator | -6/Data Miner | Free Robot Schematics ------------------ S-27 Virus | -6/Data Miner | Free R-10 Processor | -6/Data Miner | Free B-48 Gladiator | -6/Data Miner | Free Y-54 Guardian | -6/Data Miner | Free L-61 Swordsman | -6/Data Miner | Free E-15 Imp | -6/Data Miner | Free G-50 Soldier | -6/Data Miner | Free G-67 Veteran | -6/Data Miner | Free Fabricated ------------ Nothing Alien Tech Used ----------------- None Achievements -------------- Backstab The Oracle Challenges ------------ None Game ------ Seed LightningVariableFrame Manual? 0 Play Time 01:12:26 Cumulative 17.8 hours Start 2024.10.19 @ 15:11:25 End 2024.10.19 @ 16:28:35 Sessions 1 Manual Loads 0 Difficulty Rogue Special Mode None Game No. 29 Rogue 29 Adventurer 0 Explorer 0 Win Type - Total 0 Types 0/0/0/0/0/0/0/0/0 Lore% 8 Gallery% 19 Achievement% 18 Wizard Run 0 Options --------- Layout 1 ASCII 0 Keyboard 0 Movement Arrows Keybinds 0 Fullscreen 2 Font 32/SmallcapsGlow Map View 50x35 Zoom Use 0% Tactical HUD 0 Map Filters NONE Filters NONE Steam 1 RUN: 27f17d6a-173f-4d8d-ab9f-eab4a82c947f